Cogmind - Beta 13 @@@ ROGUE MODE // 2024.05.04 @ 22:48:56 Player: Silfurdreki Result: Destroyed by S-27 Virus with Autogun Performance ------------- Evolutions (5) 2500 Regions Visited (9) 1800 Robots Destroyed (33) 165 Value Destroyed (726) 726 Prototype IDs (3) 60 Alien Tech Used (0) 0 Bonus (284) 284 TOTAL SCORE: 5535 Bonus ------- Follower Combat Kills 21 Aligned with FarCom 300 Friendly Fire -37 Cogmind --------- Core Integrity 0/1000 Matter 300/300 Energy 97/100 System Corruption 0% Temperature Cool (0) Movement Core (50) Location -5/Upper Caves Parts ------- > --- POWER (2) -------- (None) > --- PROPULSION (4) --- (None) > --- UTILITY (9) ------ Advanced Terrain Scan Processor Melee Analysis Suite System Shield > --- WEAPON (2) ------- Power Sword > --- INVENTORY (5) ---- Improved Deuterium Engine ECM Suite Trap Reconfigurator Missile Launcher Peak State ------------ > --- POWER ------------ Enhanced Nuclear Core Makeshift Power Source > --- PROPULSION ------- VTOL Module VTOL Module Improved VTOL Module Nuclear Pulse Thruster > --- UTILITY ---------- Advanced Weight Redist. System Advanced Terrain Scan Processor Melee Analysis Suite Advanced ECM Suite Improved Propulsion Shielding Hacking Suite Hacking Suite System Shield Trap Reconfigurator > --- WEAPON ----------- Flak Cannon Power Sword > --- INVENTORY -------- Micro Nuclear Core VTOL Module ECM Suite Missile Launcher Makeshift Sword [Rating: 66] Favorites ----------- Power Makeshift Power Source Engine Makeshift Power Source Power Core Enhanced Nuclear Core Propulsion Aluminum Leg Leg Aluminum Leg Flight Unit VTOL Module Utility Hacking Suite Device Trap Reconfigurator Storage Medium Storage Unit Processor Melee Analysis Suite Hackware Hacking Suite Protection Improved Propulsion Shielding Weapon Beam Cannon Energy Cannon Beam Cannon Ballistic Gun Assault Rifle Ballistic Cannon Flak Cannon Launcher Rocket Launcher Special Weapon Plasma Flamer Slashing Weapon Makeshift Sword Build | -11 -10 -10 -10 -9 -8 -7 -6 -5 -5 ------- Run | Yrd Mat Min Exi Min Mat Fac Fac Fac Upp Slots Evolved 10 | . . . . . 4 2 2 2 . Power 1 | . . . . . . . 1 . . Propulsion 2 | . . . . . 2 . . . . Utility 7 | . . . . . 2 2 1 2 . Weapon . | . . . . . . . . . . Parts Attached 64 | 7 10 . 1 6 13 14 3 6 4 Power 7 | 1 1 . . 1 . 1 1 1 1 Engine 5 | 1 1 . . 1 . . 1 . 1 Core 2 | . . . . . . 1 . 1 . Reactor . | . . . . . . . . . . Propulsion 18 | 2 4 . . 2 3 5 . 2 . Treads . | . . . . . . . . . . Leg 11 | 2 4 . . 2 3 . . . . Wheel . | . . . . . . . . . . Hover . | . . . . . . . . . . Flight 7 | . . . . . . 5 . 2 . Utility 20 | 2 2 . 1 . 4 7 2 2 . Device 11 | 1 1 . 1 . 3 3 2 . . Storage 2 | 1 1 . . . . . . . . Processor 3 | . . . . . . 2 . 1 . Hackware 3 | . . . . . 1 1 . 1 . Protection 1 | . . . . . . 1 . . . Artifact . | . . . . . . . . . . Weapon 19 | 2 3 . . 3 6 1 . 1 3 Energy Gun . | . . . . . . . . . . Energy Cannon 7 | . 2 . . 2 3 . . . . Ballistic Gun 3 | 2 1 . . . . . . . . Ballistic Cannon 1 | . . . . . . 1 . . . Launcher 2 | . . . . . 1 . . . 1 Special Weapon 1 | . . . . 1 . . . . . Impact Weapon . | . . . . . . . . . . Slashing Weapon 5 | . . . . . 2 . . 1 2 Piercing Weapon . | . . . . . . . . . . Special Melee Weapon . | . . . . . . . . . . Unidentified Prototypes 2 | . . . 1 . . 1 . . . Parts Lost 15 | . 3 . . . . 1 . 10 1 Power 4 | . 2 . . . . . . 2 . Propulsion 7 | . 1 . . . . 1 . 5 . Utility 4 | . . . . . . . . 3 1 Weapon . | . . . . . . . . . . Highest Loss Streak 10 | . 2 . . . . 1 . 10 1 To Critical Strikes . | . . . . . . . . . . Average Slot Usage (%) 90 | . 87 85 85 97 96 99 100 94 28 Engine 4 | . 2 . . 11 9 1 6 4 . Core 1 | . . . . . . 5 6 4 . Leg 19 | . 27 28 28 28 35 . . . . Flight 8 | . . . . . . 30 26 21 . Device 15 | . 14 14 14 14 14 21 20 16 1 Storage 7 | . 14 14 14 14 9 . . . . Processor 3 | . . . . . . 10 6 11 11 Hackware 6 | . . . . . 9 10 13 16 10 Protection 1 | . . . . . . 1 6 4 . Energy Cannon 11 | . 12 28 28 22 12 1 . . . Ballistic Gun 3 | . 15 . . . . . . . . Ballistic Cannon 1 | . . . . . . 5 6 3 . Slashing Weapon 2 | . . . . . 4 7 6 4 3 Naked Turns . | . . . . . . . . . . Heaviest Build 27 | 12 17 17 17 21 26 20 26 27 4 Greatest Support 57 | 20 20 20 20 35 57 23 26 28 3 Greatest Overweight (x) 3 | 3 1 . . . . . . 2 1 Average Overweight (x) . | . . . . . . . . . . Largest Inventory Capacity 10 | 8 10 10 10 10 10 10 5 5 5 Average Capacity 8 | 7 9 10 10 10 10 5 5 5 5 Most Carried 10 | 4 10 10 10 10 10 10 5 5 4 Average Carried 7 | 2 8 10 9 9 9 4 3 4 3 Final Capacity 10 | 8 10 10 10 10 10 5 5 5 5 Final Carried 10 | 4 10 10 10 10 10 4 5 4 4 Class Distribution -------------------- 45% | Mutant 21% | Hacker-Sprinter 19% | Scavenger-Mutant 6% | Sprinter 5% | Hacker-Mutant Dominant Class ---------------- Mutant | -10/Materials Mutant | -10/Mines Mutant | -10/Exiles Mutant | -9/Mines Scavenger-Mutant | -8/Materials Sprinter | -7/Factory Hacker-Sprinter | -6/Factory Hacker-Sprinter | -5/Factory Hacker-Mutant | -5/Upper Caves Resources | -11 -10 -10 -10 -9 -8 -7 -6 -5 -5 ----------- Run | Yrd Mat Min Exi Min Mat Fac Fac Fac Upp Matter Collected 985 | 238 273 . . 86 157 132 39 20 40 Remotely . | . . . . . . . . . . Salvage Created 1075 | 21 374 . . 301 101 75 . . 203 Parts 65 | 4 26 . . 15 10 8 . . 2 Haulers Intercepted . | . . . . . . . . . . Recyclers Shooed 2 | . . . . 2 . . . . . Parts Field Recycled . | . . . . . . . . . . Retrieved Matter . | . . . . . . . . . . Parts Self-Destructed 1 | . . . . . . . . . 1 Prevented . | . . . . . . . . . . Kills | -11 -10 -10 -10 -9 -8 -7 -6 -5 -5 ------- Run | Yrd Mat Min Exi Min Mat Fac Fac Fac Upp Combat Hostiles Destroyed 25 | . 12 . . 5 5 1 . . 2 Melee 3 | . . . . . . 1 . . 2 Guns 12 | . 12 . . . . . . . . Cannons 6 | . . . . 5 1 . . . . AOE 4 | . . . . . 4 . . . . Classes Destroyed 10 | 1 4 . . 3 1 1 . . . Worker 1 | . 1 . . . . . . . . Tunneler 2 | 1 . . . 1 . . . . . Recycler 1 | . . . . 1 . . . . . Operator 1 | . 1 . . . . . . . . Watcher 2 | . . . . . 1 1 . . . Swarmer 13 | . 6 . . 1 4 . . . 2 Grunt 10 | . 6 . . 3 1 . . . . Brawler 1 | . . . . 1 . . . . . Programmer 1 | . . . . . . 1 . . . Zionite 1 | . . . . 1 . . . . . Decomposer 1 | . . . . . . . . . 1 Best Kill Streak 9 | 1 9 . . 2 4 1 . . 2 Combat Bots Only 8 | . 8 . . 2 4 1 . . 2 Max Kills in Single Turn 2 | 1 2 . . 1 2 1 . . 1 Gunslinging . | . . . . . . . . . . Exploded 2 | . . . . . 2 . . . . Melee 1 | . . . . . . 1 . . 1 Uniques/NPCs Destroyed . | . . . . . . . . . . Combat | -11 -10 -10 -10 -9 -8 -7 -6 -5 -5 -------- Run | Yrd Mat Min Exi Min Mat Fac Fac Fac Upp Hostile Shots Fired 252 | . 79 7 . 15 11 29 9 62 40 Missed 92 | . 30 5 . 5 7 16 4 19 6 Damage Taken 2800 | . 502 20 . 149 334 127 57 1117 494 Core 1156 | . 34 . . . 55 20 35 531 481 Absorbed by Shields . | . . . . . . . . . . Redirected to Shielding 129 | . . . . . . 19 . 110 . Core Remaining (%) 93 | 100 . . . 86 90 97 95 . . Volleys Fired 84 | 1 47 . . 11 25 . . . . Largest 2 | 2 2 . . 2 2 . . . . Hottest 160 | 40 120 . . 160 120 . . . . Shots Fired 148 | 2 94 . . 22 30 . . . . Gun 91 | 2 89 . . . . . . . . Cannon 50 | . 5 . . 18 27 . . . . Launcher 3 | . . . . . 3 . . . . Special 4 | . . . . 4 . . . . . Kinetic 91 | 2 89 . . . . . . . . Thermal 54 | . 5 . . 22 27 . . . . Explosive 3 | . . . . . 3 . . . . Electromagnetic . | . . . . . . . . . . Robot Hit Streak 8 | 1 8 . . 5 3 . . . . Robot Miss Streak 3 | . 3 . . 1 2 . . . . Penetration Max . | . . . . . . . . . . Secondary Targets 1 | . 1 . . . . . . . . Max Gunslinging Chain 1 | . 1 . . . . . . . . Shots Hit Robots 106 | 1 68 . . 16 7 4 1 . 9 Core Hits 46 | 1 23 . . 9 7 2 . . 4 Critical Kills . | . . . . . . . . . . Critical Parts Destroyed 1 | . 1 . . . . . . . . Critical Strikes 1 | . 1 . . . . . . . . Destroy 1 | . 1 . . . . . . . . Melee Attacks 43 | . . . . . 5 19 2 5 12 Impact . | . . . . . . . . . . Slashing 43 | . . . . . 5 19 2 5 12 Piercing . | . . . . . . . . . . Sneak Attacks 2 | . . . . . . 1 . . 1 Combat Hostiles 1 | . . . . . . 1 . . . Follow-up Attacks . | . . . . . . . . . . Damage Inflicted 2255 | 15 789 . . 311 414 197 38 . 491 Guns 705 | 15 690 . . . . . . . . Cannons 469 | . 87 . . 260 122 . . . . Explosions 292 | . . . . . 292 . . . . Melee 726 | . . . . . . 197 38 . 491 Ramming 38 | . 12 . . 26 . . . . . Kinetic 705 | 15 690 . . . . . . . . Thermal 494 | . 87 . . 285 122 . . . . Explosive 292 | . . . . . 292 . . . . Electromagnetic . | . . . . . . . . . . Impact . | . . . . . . . . . . Slashing 726 | . . . . . . 197 38 . 491 Piercing . | . . . . . . . . . . Highest Corruption 1 | . . . . . . 1 . . . Average Corruption 1 | . . . . . . 1 . . . Corruption Purged . | . . . . . . . . . . Corruption Blocked . | . . . . . . . . . . Overload Shots . | . . . . . . . . . . Overflow Damage 189 | . . . . . 70 31 3 . 85 Projectiles . | . . . . . . . . . . Explosions 70 | . . . . . 70 . . . . Melee 119 | . . . . . . 31 3 . 85 Knockbacks . | . . . . . . . . . . Impact . | . . . . . . . . . . Kinetic . | . . . . . . . . . . Secondary . | . . . . . . . . . . Self-Inflicted Damage . | . . . . . . . . . . Shots . | . . . . . . . . . . Rammed . | . . . . . . . . . . Targets Rammed 5 | . 2 . . 3 . . . . . Kicked 5 | . 2 . . 3 . . . . . Crushed . | . . . . . . . . . . Highest Temperature 241 | . 45 . . 241 198 1 13 25 . Average Temperature 41 | . 7 . . 90 82 1 5 13 . Received Heat Transfer 420 | . 195 . . 69 27 21 . 108 . Siege Activations . | . . . . . . . . . . Robots Corrupted . | . . . . . . . . . . Combat Hostiles . | . . . . . . . . . . Parts Fried . | . . . . . . . . . . Impact Corruptions . | . . . . . . . . . . Robots Melted . | . . . . . . . . . . Combat Hostiles . | . . . . . . . . . . Parts Melted . | . . . . . . . . . . Heat Transferred 1122 | . 185 . . 715 222 . . . . Parts Sabotaged . | . . . . . . . . . . Parts Stolen . | . . . . . . . . . . Parts Stripped . | . . . . . . . . . . Power Chain Reactions . | . . . . . . . . . . Alert | -11 -10 -10 -10 -9 -8 -7 -6 -5 -5 ------- Run | Yrd Mat Min Exi Min Mat Fac Fac Fac Upp Peak Influence 307 | 5 307 10 . 187 141 140 205 57 . Initial 68 | . 3 10 . . 1 . 68 2 . Average 81 | . 153 10 . 88 51 40 133 20 . Maximum Alert Level 1 | . 1 . . . . . 1 . . Low Security (%) 92 | 100 74 100 . 100 100 100 83 100 . Level 1 7 | . 25 . . . . . 16 . . Level 2 . | . . . . . . . . . . Level 3 . | . . . . . . . . . . Level 4 . | . . . . . . . . . . Level 5 . | . . . . . . . . . . High Security . | . . . . . . . . . . Max Security . | . . . . . . . . . . Squads Dispatched 16 | . 4 . . . 3 4 1 4 . Investigation 7 | . 3 . . . 1 2 1 . . Extermination 2 | . . . . . . 1 . 1 . Reinforcement 7 | . 1 . . . 2 1 . 3 . Assault . | . . . . . . . . . . Garrison . | . . . . . . . . . . Intercept . | . . . . . . . . . . Searches Triggered . | . . . . . . . . . . Construction Impeded . | . . . . . . . . . . Haulers Reinforced . | . . . . . . . . . . Active Scanning Responses . | . . . . . . . . . . Cargo Convoy Interrupts . | . . . . . . . . . . Stealth | -11 -10 -10 -10 -9 -8 -7 -6 -5 -5 --------- Run | Yrd Mat Min Exi Min Mat Fac Fac Fac Upp Distress Signals 4 | . 3 . . . 1 . . . . Communications Jammed . | . . . . . . . . . . Distress Signals . | . . . . . . . . . . Times Spotted 76 | . 23 4 . 6 10 13 5 10 5 Peak Tracking Total 11 | . 11 3 . 5 6 4 4 5 4 Tactical Retreats 9 | . . 1 . . . 1 2 4 1 Traps | -11 -10 -10 -10 -9 -8 -7 -6 -5 -5 ------- Run | Yrd Mat Min Exi Min Mat Fac Fac Fac Upp Traps Triggered 2 | . 2 . . . . . . . . Indirectly . | . . . . . . . . . . Trap Hack Attempts . | . . . . . . . . . . Triggered . | . . . . . . . . . . Disarmed . | . . . . . . . . . . Reprogrammed . | . . . . . . . . . . Reused . | . . . . . . . . . . Traps Reconfigurated 30 | . . . . . 2 13 7 8 . Traps Extracted . | . . . . . . . . . . Installed . | . . . . . . . . . . Triggered . | . . . . . . . . . . Machines | -11 -10 -10 -10 -9 -8 -7 -6 -5 -5 ---------- Run | Yrd Mat Min Exi Min Mat Fac Fac Fac Upp Machines Disabled . | . . . . . . . . . . Max in Single Turn . | . . . . . . . . . . Garrison Access 1 | . . . . . . . 1 . . Machines Repaired . | . . . . . . . . . . Machines Dismantled . | . . . . . . . . . . Machines Sabotaged . | . . . . . . . . . . Overloaded Fab Kills . | . . . . . . . . . . Hacking | -11 -10 -10 -10 -9 -8 -7 -6 -5 -5 --------- Run | Yrd Mat Min Exi Min Mat Fac Fac Fac Upp Machines Accessed 39 | . 7 . 4 . 6 11 9 2 . Terminals 29 | . 7 . . . 5 9 7 1 . Fabricators 3 | . . . . . . 2 1 . . Repair Stations . | . . . . . . . . . . Recycling Units . | . . . . . . . . . . Scanalyzers 2 | . . . . . 1 . . 1 . Garrison Access 1 | . . . . . . . 1 . . Total Hacks 144 | . 27 . 49 . 26 21 17 4 . Successful 97 | . 7 . 49 . 16 12 10 3 . Failed 47 | . 20 . . . 10 9 7 1 . Catastrophic 7 | . 2 . . . . 3 1 1 . Database Lockouts . | . . . . . . . . . . Manual 58 | . 19 . 1 . 15 12 9 2 . Terminals 74 | . 27 . . . 15 16 14 2 . Fabricators 7 | . . . . . . 5 2 . . Repair Stations . | . . . . . . . . . . Recycling Units . | . . . . . . . . . . Scanalyzers 13 | . . . . . 11 . . 2 . Garrison Access 1 | . . . . . . . 1 . . Terminal Hacks 71 | . 6 . 49 . 5 7 4 . . Record 51 | . 1 . 49 . . 1 . . . Part Schematic 3 | . . . . . 1 2 . . . Robot Analysis 2 | . 2 . . . . . . . . Open DSF 3 | . . . . . . 1 2 . . Branch Access Points 2 | . 1 . . . 1 . . . . Terminal Index 3 | . 1 . . . 1 1 . . . Fabricator Index 1 | . . . . . . 1 . . . Alert Level 1 | . 1 . . . . . . . . Locate Traps 1 | . . . . . . . 1 . . Dispatch Records 1 | . . . . . . 1 . . . Registered Components 1 | . . . . . 1 . . . . Zone Layout 2 | . . . . . 1 . 1 . . Fabricator Hacks 5 | . . . . . . 3 2 . . Load Schematic 3 | . . . . . . 2 1 . . Build 2 | . . . . . . 1 1 . . Repair Station Hacks . | . . . . . . . . . . Recycling Unit Hacks . | . . . . . . . . . . Scanalyzer 12 | . . . . . 10 . . 2 . Insert Component 6 | . . . . . 5 . . 1 . Analyze 6 | . . . . . 5 . . 1 . Garrison Access Hacks 1 | . . . . . . . 1 . . Seal Access 1 | . . . . . . . 1 . . Unauthorized Hacks 8 | . 1 . . . 1 2 3 1 . Terminals 8 | . 1 . . . 1 2 3 1 . Assimilate 2 | . . . . . . 1 1 . . Botnet 6 | . 1 . . . 1 1 2 1 . Fabricators . | . . . . . . . . . . Repair Stations . | . . . . . . . . . . Recycling Units . | . . . . . . . . . . Scanalyzers . | . . . . . . . . . . Garrison Access . | . . . . . . . . . . Data Cores Recovered . | . . . . . . . . . . Used . | . . . . . . . . . . Hacking Detections 30 | . 7 . . . 6 9 7 1 . Full Trace Events 6 | . 2 . . . 1 2 1 . . Feedback Events . | . . . . . . . . . . Feedback Blocked . | . . . . . . . . . . Robot Schematics Acquired . | . . . . . . . . . . Robots Built . | . . . . . . . . . . Authchips . | . . . . . . . . . . Time . | . . . . . . . . . . Total Robot Build Rating . | . . . . . . . . . . Part Schematics Acquired 9 | . . . . . 6 2 . 1 . Parts Built 1 | . . . . . . 1 . . . Authchips . | . . . . . . . . . . Time 189 | . . . . . . 73 116 . . Total Part Build Rating 3 | . . . . . . 3 . . . Parts Repaired . | . . . . . . . . . . Time . | . . . . . . . . . . Parts Recycled . | . . . . . . . . . . Recycled Matter . | . . . . . . . . . . Retrieved Matter . | . . . . . . . . . . Retrieved Components . | . . . . . . . . . . Parts Scanalyzed 6 | . . . . . 5 . . 1 . Part Schematics Acquired 6 | . . . . . 5 . . 1 . Parts Damaged . | . . . . . . . . . . Bothacking | -11 -10 -10 -10 -9 -8 -7 -6 -5 -5 ------------ Run | Yrd Mat Min Exi Min Mat Fac Fac Fac Upp Used RIF Installer . | . . . . . . . . . . Robots Hacked . | . . . . . . . . . . Non-combat . | . . . . . . . . . . Combat . | . . . . . . . . . . Robot Hacks Applied . | . . . . . . . . . . Relay Couplers Released . | . . . . . . . . . . Fabnet Peak Effective % . | . . . . . . . . . . Robots Rewired . | . . . . . . . . . . Allies Hacked . | . . . . . . . . . . Hacks Repelled . | . . . . . . . . . . Allies | -11 -10 -10 -10 -9 -8 -7 -6 -5 -5 -------- Run | Yrd Mat Min Exi Min Mat Fac Fac Fac Upp Total Allies 4 | . . . . 2 . 1 1 . . Largest Group 2 | . . . . 2 . 1 1 1 . Highest-Rated Group 49 | . . . . 49 . 26 10 10 . Highest-Rated Ally 31 | . . . . 31 . 26 10 10 . Total Orders 2 | . . . . . . . . 2 . ROAM 1 | . . . . . . . . 1 . FOLLOW 1 | . . . . . . . . 1 . Ally Attacks 16 | . . . . 16 . . . . . Total Damage 286 | . . . . 286 . . . . . Kills 3 | . . . . 3 . . . . . Allies Corrupted 1 | . . . . . . 1 . . . Allies Melted . | . . . . . . . . . . Intel | -11 -10 -10 -10 -9 -8 -7 -6 -5 -5 ------- Run | Yrd Mat Min Exi Min Mat Fac Fac Fac Upp Robot Analysis Total 2 | . 2 . . . . . . . . Derelict Logs Recovered 3 | . . 1 . 2 . . . . . Drone Launches . | . . . . . . . . . . Drone Recoveries . | . . . . . . . . . . Exploration | -11 -10 -10 -10 -9 -8 -7 -6 -5 -5 ------------- Run | Yrd Mat Min Exi Min Mat Fac Fac Fac Upp Turns Passed 4341 | 81 851 165 324 547 843 591 405 291 243 Spaces Moved 4461 | 51 466 131 268 371 570 1030 664 522 388 Core 424 | 10 . . . . . . . 26 388 Treads . | . . . . . . . . . . Legs 1847 | 41 466 131 268 371 570 . . . . Wheels . | . . . . . . . . . . Hover . | . . . . . . . . . . Flight 2190 | . . . . . . 1030 664 496 . Fastest Speed 26 | 50 120 120 120 120 117 26 26 26 50 Average Speed 69 | 120 120 120 120 128 121 29 26 28 50 Slowest Speed 200 | 200 190 120 120 130 125 32 26 175 100 Overloaded Moves . | . . . . . . . . . . Propulsion Burnouts . | . . . . . . . . . . Robots Hopped 3 | . . . . . . . . 3 . Cave-ins Triggered 1 | . . . . . 1 . . . . Exploration Rate (%) 40 | 5 86 36 64 70 46 27 21 14 34 Regions Visited 9 Branch Regions 4 Pre-discovered Areas 1 | . . . 1 . . . . . . Known Exits Taken 3 | . 1 1 . . 1 . . . . Unknown Exits Taken 6 | 1 . . 1 1 . 1 1 1 . Scrap Searched 2 | . . . . . . . . . 2 Spaces Dug 26 | . . . . . 5 14 1 5 1 Terrain Destroyed 49 | . . . . . 28 14 1 5 1 Melee 26 | . . . . . 5 14 1 5 1 Projectile . | . . . . . . . . . . AOE 23 | . . . . . 23 . . . . Terrain Rammed . | . . . . . . . . . . Walls Destroyed . | . . . . . . . . . . Machines Disabled . | . . . . . . . . . . Actions | -11 -10 -10 -10 -9 -8 -7 -6 -5 -5 --------- Run | Yrd Mat Min Exi Min Mat Fac Fac Fac Upp Total 5514 | 65 676 139 270 417 683 1295 893 655 421 Wait 791 | 3 128 9 . 18 60 219 223 118 13 Move 4446 | 50 465 130 267 370 569 1029 663 515 388 Hop 3 | . . . . . . . . 3 . Pick Up 34 | 4 12 . 1 3 5 4 2 3 . Fast Attach 16 | 7 2 . . 2 2 3 . . . Attach 22 | . 1 . . . 4 7 2 4 4 Detach 7 | . . . . . 1 1 . 1 4 Swap 26 | . 7 . 1 4 7 4 1 2 . Drop 37 | . 12 . 1 6 5 9 . 4 . Fire 84 | 1 47 . . 11 25 . . . . Melee 43 | . . . . . 5 19 2 5 12 Ram . | . . . . . . . . . . Kick 5 | . 2 . . 3 . . . . . Crush . | . . . . . . . . . . Escape Stasis . | . . . . . . . . . . Rewire . | . . . . . . . . . . Trap . | . . . . . . . . . . Miscellaneous . | . . . . . . . . . . Route ------- -11/Scrapyard -10/Materials (discovered 3 exits: [*Mat x2] / *Min) -10/Mines -10/Exiles (discovered 2 exits: [*Min x2]) -9/Mines -8/Materials (discovered 2 exits: *Fac x2) -7/Factory -6/Factory (discovered 2 exits: *Fac x2) -5/Factory -5/Upper Caves History --------- Turn | Location | Event 15 | -11/Scrapyard | Discovered new exit (range 15) 82 | -11/Scrapyard | Entered Materials 304 | -10/Materials | Build established: Mutant 328 | -10/Materials | Destroyed 8 combat bots 532 | -10/Materials | Discovered new exit (range 16) 625 | -10/Materials | Discovered new exit (range 16) 630 | -10/Materials | Identified exit to Mines 933 | -10/Materials | Entered Mines 957 | -10/Mines | Met a Derelict bent on vengeance 967 | -10/Mines | Identified exit to Exiles 1067 | -10/Mines | Deemed a non-threat by the Exiles lab entrance 1098 | -10/Mines | Entered Exiles 1114 | -10/Exiles | Discovered new exit (range 15) 1127 | -10/Exiles | Met 8R-AWN 1148 | -10/Exiles | Met EX-HEX 1192 | -10/Exiles | Met EX-BIN 1208 | -10/Exiles | Aligned with FarCom system 1209 | -10/Exiles | Given EX-Vault access code 1281 | -10/Exiles | Opened EX-Vault 1289 | -10/Exiles | Found Prototype Device 1290 | -10/Exiles | Identified Trap Reconfigurator 1315 | -10/Exiles | Warned to stay clear of 0b10 Research branches 1333 | -10/Exiles | Exiles lab attacked by MAIN.C 1368 | -10/Exiles | Learned location of Zion (-7) 1404 | -10/Exiles | Discovered new exit (range 14) 1422 | -10/Exiles | Left Exiles lab with Trap Reconfigurator 1422 | -10/Exiles | Entered Mines 1482 | -9/Mines | Learned location of 1 exit from Materials 1482 | -9/Mines | Discovered new exit (range 12) 1649 | -9/Mines | A weapon hastily lodged in a ceiling crevice suddenly fell to the ground 1799 | -9/Mines | Learned Materials stockpile data 1896 | -9/Mines | Received a Rocket Launcher from a helpful Derelict 1969 | -9/Mines | Entered Materials 1969 | -8/Materials | Evolved 4 slots: Propulsion x2, Utility x2 1970 | -8/Materials | Identified exit to Factory 2151 | -8/Materials | Discovered exit to Factory (range 16) 2284 | -8/Materials | Build established: Scavenger-Mutant 2518 | -8/Materials | Crushed by falling debris 2812 | -8/Materials | Entered Factory 2812 | -7/Factory | Evolved 2 slots: Utility x2 3114 | -7/Factory | Fabricated System Shield? 3348 | -7/Factory | Discovered new exit (range 9) 3403 | -7/Factory | Entered another Factory area 3403 | -6/Factory | Evolved 2 slots: Power x1, Utility x1 3440 | -6/Factory | Identified exit to DSF 3454 | -6/Factory | Build established: Hacker-Sprinter 3655 | -6/Factory | Spotted B-75 Beast 3759 | -6/Factory | Discovered new exit (range 15) 3793 | -6/Factory | Discovered new exit (range 2) 3808 | -6/Factory | Entered another Factory area 3808 | -5/Factory | Accompanied by 1 ally 3808 | -5/Factory | Evolved 2 slots: Utility x2 4044 | -5/Factory | Discovered new exit (range 7) 4091 | -5/Factory | Core integrity fell below 50% 4099 | -5/Factory | Entered Upper Caves 4115 | -5/Upper Caves | Lost 10 parts (2p5n3u) 4332 | -5/Upper Caves | Core integrity fell below 20% 4342 | -5/Upper Caves | Destroyed by S-27 Virus with Autogun Last Messages --------------- 04123_ Acquired 20 matter. 04174_ W2-3EW(k) breaks down the debris. 04175_ Sneak attack on W2-3EW(k). 04175_ Destroyed Wheel. 04175_ W2-3EW(k) destroyed. 04177_ Acquired 10 matter. 04210_ Sneak attack on G-50 Soldier. 04210_ G-50 Soldier destroyed. 04214_ Sneak attack on 97-5LO(g). 04214_ 97-5LO(g) destroyed. 04224_ Hvy. Laser fries itself beyond repair. 04287_ Searching scrap... 04287_ Found Lrn. Missile Launcher. 04287_ Found 23 Matter. 04287_ Found Energy Well. 04287_ Found 19 Matter. 04324_ Hacking Suite destroyed. 04330_ S-27 Virus destroyed. 04332_ Destroyed VTOL Module. 04341_ S-27 Virus destroyed. Map ----- +----------------------------------------------------+ | ???????????????????????????????????????## % #???? | | ???????????????????????????????????????# #???? | | ???????????????????????????????????????#* % #???? | | ??????????????#######??????????????????## ##### | | ??????????????# ##?????????????????## # ## | | ??????????????# ##?###???????????## # | | ??????????????# ## #??????????## | | ??????????????### #??????????# | | ????????????????# ##??????????## | | ????????????????## ####????????????## | | ????????????????## ##????????????????# | | ????????????????# #?????????????????## | | ????????????????## ##???????????????#### | | ????## ??????????# ##???###???????## ####### | | ????# ?????## ##?# #??????## #?????### | | ?????????# ## ## #??????# ##???????? | | ?????????# ### #???????# ####?????? | | ???????# ###?##s ##??????## ##???## | | ???? ????## ##???????# #?### | | ??? ???## #????????# #### #?# | | ???## # ????# ##???????###???# #?# | | ????## # ????# ##?#####?????## #?# | | ?????###### ?##?????# #?# ##????# #### | | ??????????#?????????# ### #????# ### | | ????????????????????# % #???## | | ????????????????????## @ s ##???# | | ?????????????????????## ##????# | | ??????????????????????## %[## #?????# ## # | | ??????????????????????## ### ####### ###### | | ?????????????????????## ##?## ## ##????? | | ????????????????????## ##### ##?????? | | ??????????????????### ### ##??????? | | ?????????????????## ##### ##???????? | | ???????????????### ## ##???????? | | ???????????????# ### #???????? | | ???????????????# ### #?# ## ####????? | | ???????????????#### #### ### ###??? | | ??????????????????# ###?# #?## #### | | ??????????????????#! #### ###???# ##??### | | ??????????????????# %#???##?????####?????#### | | ??????????????????#%]#??????????????????????###### | | ??????????????????# #???????????????????????????? | | ?????????????????? #???????????????????????????? | | ????????????????? ???????????????????????????? | | ????????????????# ??????????????????????????? | | ???????????????? ?????????????????????????? | | ??????????????? ?????????????????????????? | | ?????????????? ######????????????????????????? | | ?????????????? ??????????????????????????????? | | ????????????? ## ??????????????????????????????? | +----------------------------------------------------+ Best States ------------- Heat Dissipation 40 Energy Generation 27 Energy Capacity 370 Matter Stores 300 Matter Capacity 300 Sight Range 18 Robot Scan Range 15 Terrain Scan Density 210 ECM Strength 2 Additional Mass Support 9 Propulsion Shielding 66 Evasion (%) 64 Melee Accuracy 5 Offensive Hacking 20 Defensive Hacking 10 Item Schematics ----------------- Weight Redist. System | -8/Materials | Scanalyzed VTOL Module | -8/Materials | Scanalyzed Rocket Launcher | -8/Materials | Scanalyzed Melee Analysis Suite | -8/Materials | Scanalyzed Hacking Suite | -8/Materials | Hacked Imp. VTOL Module | -8/Materials | Scanalyzed System Shield | -7/Factory | Hacked Propulsion Shielding | -7/Factory | Hacked Mic. Nuclear Core | -5/Factory | Scanalyzed Robot Schematics ------------------ None Fabricated ------------ System Shield | x1 | -7/Factory Alien Tech Used ----------------- None Achievements -------------- None Challenges ------------ None Game ------ Seed TripodDamperConstruct Manual? 0 Play Time 01:03:29 Cumulative 22.8 hours Start 2024.05.04 @ 21:38:56 End 2024.05.04 @ 22:48:56 Sessions 1 Manual Loads 0 Difficulty Rogue Special Mode None Game No. 38 Rogue 38 Adventurer 0 Explorer 0 Win Type - Total 0 Types 0/0/0/0/0/0/0/0/0 Lore% 31 Gallery% 30 Achievement% 25 Wizard Run 0 Options --------- Layout 0 ASCII 0 Keyboard 0 Movement Numpad Keybinds 0 Fullscreen 1 Font 18/SmallcapsGlow Map View 76x50 Zoom Use 0% Tactical HUD 1 Map Filters NONE Filters NONE Steam 1 RUN: a7a7178c-a7f6-4745-aad3-6f5bc31c2e56